[Event "Late-Titled-Tuesday-Blitz-January-30-2024"]
[Site "Chess.com"]
[Date "2024.01.30"]
[Round "11"]
[White "nindjaxx8"]
[Black "Zq1"]
[Result "1-0"]
[WhiteElo "2583"]
[BlackElo "2487"]
[TimeControl "180+1"]
[EndTime "16:06:57 PST"]
[Termination "nindjaxx8 won on time"]

1. d4 {[%clk 0:02:53.1]} 1... Nf6 {[%clk 0:02:59.5]} 2. c4 {[%clk 0:02:52]} 2...
a6 {[%clk 0:02:59.6]} 3. Nc3 {[%clk 0:02:51.6]} 3... c5 {[%clk 0:02:58.9]} 4. e3
{[%clk 0:02:51.4]} 4... e6 {[%clk 0:02:57.1]} 5. Nf3 {[%clk 0:02:51.4]} 5... d5
{[%clk 0:02:56.4]} 6. Be2 {[%clk 0:02:47.6]} 6... Nc6 {[%clk 0:02:51]} 7. O-O
{[%clk 0:02:47]} 7... dxc4 {[%clk 0:02:49.3]} 8. Bxc4 {[%clk 0:02:46.8]} 8... b5
{[%clk 0:02:47.8]} 9. Be2 {[%clk 0:02:46.2]} 9... Bb7 {[%clk 0:02:43.7]} 10. a3
{[%clk 0:02:46.1]} 10... cxd4 {[%clk 0:02:31.9]} 11. exd4 {[%clk 0:02:46]} 11...
Be7 {[%clk 0:02:31.9]} 12. Be3 {[%clk 0:02:45.6]} 12... O-O {[%clk 0:02:30.6]}
13. Rc1 {[%clk 0:02:45.2]} 13... Rc8 {[%clk 0:02:29.6]} 14. Bd3 {[%clk 0:02:45]}
14... Na5 {[%clk 0:02:22.7]} 15. Qe2 {[%clk 0:02:43.6]} 15... Nc4 {[%clk
0:02:21]} 16. Rfd1 {[%clk 0:02:40.9]} 16... Nxe3 {[%clk 0:02:16.7]} 17. fxe3
{[%clk 0:02:41.8]} 17... g6 {[%clk 0:02:09.1]} 18. Bb1 {[%clk 0:02:35.7]} 18...
Qb6 {[%clk 0:02:01]} 19. Ne5 {[%clk 0:02:33.6]} 19... Rfd8 {[%clk 0:01:58.4]}
20. h3 {[%clk 0:02:32.6]} 20... Bd6 {[%clk 0:01:50.1]} 21. Nd3 {[%clk
0:02:32.2]} 21... Ne4 {[%clk 0:01:43.6]} 22. Nxe4 {[%clk 0:02:23.4]} 22... Bxe4
{[%clk 0:01:42.7]} 23. Nf2 {[%clk 0:02:09.3]} 23... Bxb1 {[%clk 0:01:32.8]} 24.
Rxb1 {[%clk 0:02:10.2]} 24... Qc6 {[%clk 0:01:27.3]} 25. Rf1 {[%clk 0:02:09.5]}
25... Qc2 {[%clk 0:01:24.9]} 26. Qf3 {[%clk 0:02:09.1]} 26... Qf5 {[%clk
0:01:06.1]} 27. Qd1 {[%clk 0:02:08.5]} 27... Qc2 {[%clk 0:00:54.8]} 28. Qf3
{[%clk 0:01:54.1]} 28... Qf5 {[%clk 0:00:54.4]} 29. Ne4 {[%clk 0:01:50.1]} 29...
Qxf3 {[%clk 0:00:53]} 30. Rxf3 {[%clk 0:01:51]} 30... Be7 {[%clk 0:00:52.2]} 31.
b4 {[%clk 0:01:47.7]} 31... Rc2 {[%clk 0:00:47.7]} 32. Rf2 {[%clk 0:01:31.4]}
32... Rc4 {[%clk 0:00:36.3]} 33. Nd2 {[%clk 0:00:59.4]} 33... Rc3 {[%clk
0:00:35]} 34. Rb3 {[%clk 0:00:58.9]} 34... Rc1+ {[%clk 0:00:31.5]} 35. Kh2
{[%clk 0:00:58]} 35... f5 {[%clk 0:00:30.4]} 36. g3 {[%clk 0:00:51.7]} 36...
Rdc8 {[%clk 0:00:29.2]} 37. Nf3 {[%clk 0:00:46.5]} 37... R8c2 {[%clk 0:00:23.9]}
38. Kg2 {[%clk 0:00:37.7]} 38... Bf6 {[%clk 0:00:23.2]} 39. Rd3 {[%clk
0:00:26.2]} 39... Kf7 {[%clk 0:00:22.9]} 40. Rfd2 {[%clk 0:00:17.7]} 40... Ke7
{[%clk 0:00:20.5]} 41. h4 {[%clk 0:00:16.7]} 41... h6 {[%clk 0:00:19.6]} 42. d5
{[%clk 0:00:13.3]} 42... e5 {[%clk 0:00:18.4]} 43. d6+ {[%clk 0:00:13.4]} 43...
Kd7 {[%clk 0:00:17.9]} 44. Rd5 {[%clk 0:00:09.2]} 44... e4 {[%clk 0:00:15.9]}
45. Ng1 {[%clk 0:00:03.7]} 45... Rxd2+ {[%clk 0:00:14]} 46. Rxd2 {[%clk
0:00:04.6]} 46... Rc3 {[%clk 0:00:12.7]} 47. Ne2 {[%clk 0:00:03.7]} 47... Rd3
{[%clk 0:00:11.7]} 48. Rc2 {[%clk 0:00:02.9]} 48... g5 {[%clk 0:00:08.7]} 49.
hxg5 {[%clk 0:00:02.2]} 49... hxg5 {[%clk 0:00:08.9]} 50. Kf2 {[%clk 0:00:02.4]}
50... Kxd6 {[%clk 0:00:06.9]} 51. Rc8 {[%clk 0:00:01.7]} 51... Rxa3 {[%clk
0:00:05.5]} 52. Rf8 {[%clk 0:00:02.3]} 52... Ke6 {[%clk 0:00:05.3]} 53. Rc8
{[%clk 0:00:02.1]} 53... Be5 {[%clk 0:00:04.7]} 54. Rc6+ {[%clk 0:00:02.1]}
54... Kd5 {[%clk 0:00:04.6]} 55. Rg6 {[%clk 0:00:02]} 55... g4 {[%clk
0:00:04.1]} 56. Rg5 {[%clk 0:00:02.1]} 56... Ke6 {[%clk 0:00:03.5]} 57. Rg6+
{[%clk 0:00:02.6]} 57... Bf6 {[%clk 0:00:03.7]} 58. Rg8 {[%clk 0:00:02.9]} 58...
Be5 {[%clk 0:00:03.8]} 59. Rg6+ {[%clk 0:00:02.8]} 59... Kf7 {[%clk 0:00:03.9]}
60. Rc6 {[%clk 0:00:02.7]} 60... Ra4 {[%clk 0:00:03.4]} 61. Rc5 {[%clk
0:00:02.8]} 61... Ke6 {[%clk 0:00:02.9]} 62. Rc6+ {[%clk 0:00:03.4]} 62... Kd5
{[%clk 0:00:02.1]} 63. Rb6 {[%clk 0:00:03.8]} 63... Rxb4 {[%clk 0:00:01.3]} 64.
Rxa6 {[%clk 0:00:04]} 64... Ra4 {[%clk 0:00:02]} 65. Rb6 {[%clk 0:00:03.9]}
65... b4 {[%clk 0:00:02.4]} 66. Rb5+ {[%clk 0:00:04]} 66... Kd6 {[%clk
0:00:02.8]} 67. Ke1 {[%clk 0:00:03.7]} 67... Bc3+ {[%clk 0:00:02.9]} 68. Kd1
{[%clk 0:00:03.7]} 68... Ra1+ {[%clk 0:00:02.6]} 69. Kc2 {[%clk 0:00:02]} 69...
Ra2+ {[%clk 0:00:02.8]} 70. Kd1 {[%clk 0:00:02.4]} 70... Rd2+ {[%clk 0:00:02.6]}
71. Ke1 {[%clk 0:00:02.8]} 1-0

[Event "Late-Titled-Tuesday-Blitz-January-30-2024"]
[Site "Chess.com"]
[Date "2024.01.30"]
[Round "11"]
[White "WPWPWP-2015"]
[Black "Chessdreamer2020"]
[Result "0-1"]
[WhiteElo "2472"]
[BlackElo "2569"]
[TimeControl "180+1"]
[EndTime "16:07:01 PST"]
[Termination "Chessdreamer2020 won by resignation"]

1. d4 {[%clk 0:02:55.7]} 1... d6 {[%clk 0:02:58.5]} 2. g3 {[%clk 0:02:54.8]}
2... e5 {[%clk 0:02:58.7]} 3. Nf3 {[%clk 0:02:53.7]} 3... e4 {[%clk 0:02:53.4]}
4. Nfd2 {[%clk 0:02:52.4]} 4... d5 {[%clk 0:02:53.6]} 5. Nb3 {[%clk 0:02:51.1]}
5... Nf6 {[%clk 0:02:52.7]} 6. Bg2 {[%clk 0:02:48.9]} 6... c6 {[%clk 0:02:53]}
7. a4 {[%clk 0:02:47.7]} 7... h5 {[%clk 0:02:52.3]} 8. h4 {[%clk 0:02:46.2]}
8... Bd6 {[%clk 0:02:51.9]} 9. Bg5 {[%clk 0:02:45.3]} 9... Bf5 {[%clk
0:02:48.5]} 10. a5 {[%clk 0:02:41.8]} 10... Qc7 {[%clk 0:02:46.2]} 11. Kd2
{[%clk 0:02:16.4]} 11... Ng4 {[%clk 0:02:44]} 12. Qf1 {[%clk 0:02:06.5]} 12...
f6 {[%clk 0:02:39.2]} 13. Be3 {[%clk 0:01:59.3]} 13... Nd7 {[%clk 0:02:30.7]}
14. Nc3 {[%clk 0:01:49]} 14... Nxe3 {[%clk 0:02:25.7]} 15. Kxe3 {[%clk
0:01:48.1]} 15... O-O-O {[%clk 0:02:19.6]} 16. Kd2 {[%clk 0:01:41.4]} 16... Be6
{[%clk 0:02:11.8]} 17. e3 {[%clk 0:01:39.3]} 17... g5 {[%clk 0:02:11.7]} 18. Na4
{[%clk 0:01:25.3]} 18... c5 {[%clk 0:02:05.4]} 19. Naxc5 {[%clk 0:01:20]} 19...
Nxc5 {[%clk 0:02:06.3]} 20. dxc5 {[%clk 0:01:18.8]} 20... Bxc5 {[%clk
0:02:07.2]} 21. Nxc5 {[%clk 0:01:17.3]} 21... Qxc5 {[%clk 0:02:08.1]} 22. c3
{[%clk 0:01:16.9]} 22... Kb8 {[%clk 0:02:05.3]} 23. Ra4 {[%clk 0:01:12.6]} 23...
Bd7 {[%clk 0:01:56.7]} 24. Rb4 {[%clk 0:01:11.1]} 24... Qxa5 {[%clk 0:01:55.7]}
25. Qe2 {[%clk 0:01:07.6]} 25... gxh4 {[%clk 0:01:52.4]} 26. Rxh4 {[%clk
0:01:06.7]} 26... Bg4 {[%clk 0:01:52.1]} 27. Qf1 {[%clk 0:00:33.9]} 27... f5
{[%clk 0:01:36.3]} 28. Qb5 {[%clk 0:00:32.5]} 28... Qxb5 {[%clk 0:01:35.8]} 29.
Rxb5 {[%clk 0:00:32.9]} 29... Rh6 {[%clk 0:01:29.5]} 30. Rh1 {[%clk 0:00:30.5]}
30... Ra6 {[%clk 0:01:29.3]} 31. Bf1 {[%clk 0:00:22.2]} 31... Ra1 {[%clk
0:01:27.6]} 32. Bg2 {[%clk 0:00:20.5]} 32... Rxh1 {[%clk 0:01:26.2]} 33. Bxh1
{[%clk 0:00:20.8]} 33... Kc7 {[%clk 0:01:26.2]} 34. Bg2 {[%clk 0:00:20.6]} 34...
Kc6 {[%clk 0:01:26.1]} 35. Ra5 {[%clk 0:00:19.6]} 35... a6 {[%clk 0:01:23.6]}
36. Ra1 {[%clk 0:00:19.2]} 36... Rh8 {[%clk 0:01:19.7]} 37. Rh1 {[%clk
0:00:18.4]} 37... Kc5 {[%clk 0:01:19.1]} 38. b3 {[%clk 0:00:18.3]} 38... a5
{[%clk 0:01:17]} 39. Kc2 {[%clk 0:00:17.6]} 39... b5 {[%clk 0:01:15.3]} 40. Ra1
{[%clk 0:00:16.2]} 40... Kb6 {[%clk 0:01:13.7]} 41. Rh1 {[%clk 0:00:15.7]} 41...
Be2 {[%clk 0:01:12.4]} 42. Re1 {[%clk 0:00:12.8]} 42... Bd3+ {[%clk 0:01:12.1]}
43. Kb2 {[%clk 0:00:13.4]} 43... a4 {[%clk 0:01:10.8]} 44. Bh3 {[%clk
0:00:12.6]} 44... Rf8 {[%clk 0:01:09.3]} 45. Bg2 {[%clk 0:00:12.6]} 45... axb3
{[%clk 0:01:09]} 46. Kxb3 {[%clk 0:00:12.8]} 46... Bc4+ {[%clk 0:01:05.6]} 47.
Kb2 {[%clk 0:00:13]} 47... Ra8 {[%clk 0:01:05.2]} 48. Ra1 {[%clk 0:00:12]} 48...
Rxa1 {[%clk 0:01:05.3]} 49. Kxa1 {[%clk 0:00:12.9]} 49... Be2 {[%clk 0:01:05.7]}
50. Kb2 {[%clk 0:00:12.4]} 50... Kc5 {[%clk 0:01:06.1]} 51. Kc2 {[%clk
0:00:12.8]} 51... Kc4 {[%clk 0:01:04.8]} 52. Kd2 {[%clk 0:00:12.8]} 52... Bg4
{[%clk 0:00:59.2]} 53. Bf1+ {[%clk 0:00:13.1]} 53... Kc5 {[%clk 0:00:59.5]} 54.
Bg2 {[%clk 0:00:13.6]} 54... b4 {[%clk 0:00:56.1]} 55. cxb4+ {[%clk 0:00:13.1]}
55... Kxb4 {[%clk 0:00:57]} 56. Bf1 {[%clk 0:00:13.6]} 56... Bf3 {[%clk
0:00:54.8]} 57. Bh3 {[%clk 0:00:11.8]} 57... Bg4 {[%clk 0:00:54.9]} 58. Bf1
{[%clk 0:00:12.1]} 58... Kb3 {[%clk 0:00:51.3]} 59. Ba6 {[%clk 0:00:11]} 59...
Kb4 {[%clk 0:00:42.3]} 60. Bb7 {[%clk 0:00:08.6]} 60... Kc5 {[%clk 0:00:41.1]}
61. Ba6 {[%clk 0:00:06.6]} 61... d4 {[%clk 0:00:40.4]} 62. exd4+ {[%clk
0:00:03.9]} 62... Kxd4 {[%clk 0:00:41.3]} 63. Bf1 {[%clk 0:00:04.1]} 63... f4
{[%clk 0:00:33.8]} 64. Ke1 {[%clk 0:00:04]} 64... fxg3 {[%clk 0:00:32.7]} 65.
fxg3 {[%clk 0:00:04.4]} 65... Ke3 {[%clk 0:00:32.6]} 66. Bg2 {[%clk 0:00:04.8]}
66... Bf3 {[%clk 0:00:32.4]} 67. Bh3 {[%clk 0:00:04.8]} 67... Bh1 {[%clk
0:00:30]} 68. Kf1 {[%clk 0:00:04.8]} 68... Kf3 {[%clk 0:00:26.6]} 69. Bf5 {[%clk
0:00:04.6]} 69... Kxg3 {[%clk 0:00:26.6]} 70. Bg6 {[%clk 0:00:04.8]} 70... Bf3
{[%clk 0:00:26.5]} 71. Kg1 {[%clk 0:00:04.6]} 71... h4 {[%clk 0:00:26.9]} 72.
Bf5 {[%clk 0:00:04.8]} 72... h3 {[%clk 0:00:26.8]} 73. Bxh3 {[%clk 0:00:02.4]}
73... Kxh3 {[%clk 0:00:26.9]} 0-1

[Event "Late-Titled-Tuesday-Blitz-January-30-2024"]
[Site "Chess.com"]
[Date "2024.01.30"]
[Round "11"]
[White "ameetghasi100"]
[Black "mightysmasher"]
[Result "1-0"]
[WhiteElo "2742"]
[BlackElo "2574"]
[TimeControl "180+1"]
[EndTime "16:07:03 PST"]
[Termination "ameetghasi100 won by checkmate"]

1. Nf3 {[%clk 0:03:00.7]} 1... d5 {[%clk 0:02:59.4]} 2. c4 {[%clk 0:03:00]} 2...
e6 {[%clk 0:02:59.2]} 3. e3 {[%clk 0:02:59.7]} 3... Nf6 {[%clk 0:02:59.4]} 4. b3
{[%clk 0:03:00]} 4... Be7 {[%clk 0:02:59]} 5. Bb2 {[%clk 0:03:00.5]} 5... O-O
{[%clk 0:02:59.1]} 6. Nc3 {[%clk 0:03:00.9]} 6... c5 {[%clk 0:02:58.9]} 7. cxd5
{[%clk 0:02:59.3]} 7... exd5 {[%clk 0:02:58.9]} 8. d4 {[%clk 0:02:59.8]} 8... b6
{[%clk 0:02:58.8]} 9. Bd3 {[%clk 0:02:59.3]} 9... Bb7 {[%clk 0:02:58.7]} 10. O-O
{[%clk 0:02:59.4]} 10... Nc6 {[%clk 0:02:56.6]} 11. Ne2 {[%clk 0:02:59.3]} 11...
Rc8 {[%clk 0:02:55.3]} 12. Rc1 {[%clk 0:02:59.4]} 12... Nb4 {[%clk 0:02:52.2]}
13. Bf5 {[%clk 0:02:54.5]} 13... Rb8 {[%clk 0:02:42.1]} 14. a3 {[%clk
0:02:54.4]} 14... Nc6 {[%clk 0:02:41.7]} 15. Nf4 {[%clk 0:02:45]} 15... Bc8
{[%clk 0:02:29.2]} 16. Bb1 {[%clk 0:02:14.9]} 16... Be6 {[%clk 0:02:01.1]} 17.
Ng5 {[%clk 0:01:57.7]} 17... Bg4 {[%clk 0:01:52]} 18. Qd3 {[%clk 0:01:41.6]}
18... g6 {[%clk 0:01:40.4]} 19. h3 {[%clk 0:01:39.3]} 19... Bf5 {[%clk
0:01:38.6]} 20. Qb5 {[%clk 0:01:39.5]} 20... Bxb1 {[%clk 0:01:34.7]} 21. Rxb1
{[%clk 0:01:33.9]} 21... Rc8 {[%clk 0:01:24.8]} 22. dxc5 {[%clk 0:01:32.7]}
22... bxc5 {[%clk 0:01:19.5]} 23. Rfd1 {[%clk 0:01:30.9]} 23... d4 {[%clk
0:01:15.8]} 24. Nf3 {[%clk 0:01:25.4]} 24... Qa5 {[%clk 0:00:47]} 25. Qxa5
{[%clk 0:01:09.2]} 25... Nxa5 {[%clk 0:00:47.9]} 26. exd4 {[%clk 0:01:08]} 26...
Nxb3 {[%clk 0:00:46.8]} 27. d5 {[%clk 0:01:05.1]} 27... Ne4 {[%clk 0:00:33.2]}
28. Be5 {[%clk 0:00:42.8]} 28... c4 {[%clk 0:00:23.4]} 29. d6 {[%clk 0:00:42.7]}
29... Bf6 {[%clk 0:00:21.6]} 30. Nd5 {[%clk 0:00:37.3]} 30... Bxe5 {[%clk
0:00:18.8]} 31. Nxe5 {[%clk 0:00:37.2]} 31... Kg7 {[%clk 0:00:19.1]} 32. d7
{[%clk 0:00:30.9]} 32... Rcd8 {[%clk 0:00:18.8]} 33. Ne7 {[%clk 0:00:20]} 33...
Nc3 {[%clk 0:00:18.1]} 34. N7c6 {[%clk 0:00:17.3]} 34... Nxd1 {[%clk 0:00:18.2]}
35. Rxd1 {[%clk 0:00:06.2]} 35... Nc5 {[%clk 0:00:17.5]} 36. Nxd8 {[%clk
0:00:05.8]} 36... Rxd8 {[%clk 0:00:17.5]} 37. Rd5 {[%clk 0:00:06.3]} 37... Ne6
{[%clk 0:00:16]} 38. Nc6 {[%clk 0:00:06.4]} 38... c3 {[%clk 0:00:14.2]} 39. Nxd8
{[%clk 0:00:06.5]} 39... Nxd8 {[%clk 0:00:14.7]} 40. Rc5 {[%clk 0:00:06.9]}
40... Kf6 {[%clk 0:00:15.2]} 41. Rxc3 {[%clk 0:00:05.8]} 41... Ke7 {[%clk
0:00:15.7]} 42. Rc7 {[%clk 0:00:06.4]} 42... Kd6 {[%clk 0:00:15.6]} 43. Rxa7
{[%clk 0:00:06.7]} 43... Kc6 {[%clk 0:00:16.1]} 44. Ra4 {[%clk 0:00:05.9]} 44...
Kxd7 {[%clk 0:00:16.2]} 45. Rd4+ {[%clk 0:00:06.4]} 45... Ke7 {[%clk 0:00:16.6]}
46. Rd1 {[%clk 0:00:06.1]} 46... Nc6 {[%clk 0:00:16.7]} 47. a4 {[%clk
0:00:06.8]} 47... Na5 {[%clk 0:00:17.1]} 48. f3 {[%clk 0:00:06.9]} 48... f5
{[%clk 0:00:17.3]} 49. Kf2 {[%clk 0:00:07.4]} 49... Ke6 {[%clk 0:00:17.4]} 50.
h4 {[%clk 0:00:07.9]} 50... h6 {[%clk 0:00:17]} 51. Kg3 {[%clk 0:00:08.3]} 51...
g5 {[%clk 0:00:16.9]} 52. h5 {[%clk 0:00:08.8]} 52... Ke5 {[%clk 0:00:15.4]} 53.
Rb1 {[%clk 0:00:08.7]} 53... Nc4 {[%clk 0:00:14]} 54. Rb5+ {[%clk 0:00:09.6]}
54... Kf6 {[%clk 0:00:13.9]} 55. a5 {[%clk 0:00:09.4]} 55... f4+ {[%clk
0:00:09.3]} 56. Kf2 {[%clk 0:00:08.6]} 56... Nd6 {[%clk 0:00:07.3]} 57. Rb6
{[%clk 0:00:08.4]} 57... Ke7 {[%clk 0:00:07.8]} 58. a6 {[%clk 0:00:05.8]} 58...
Nc8 {[%clk 0:00:08.2]} 59. Rxh6 {[%clk 0:00:05.7]} 59... Kd7 {[%clk 0:00:08.1]}
60. a7 {[%clk 0:00:05.3]} 60... Nxa7 {[%clk 0:00:07.7]} 61. Rh7+ {[%clk
0:00:05.9]} 61... Ke6 {[%clk 0:00:08.6]} 62. Rxa7 {[%clk 0:00:06.7]} 62... Kf6
{[%clk 0:00:09.4]} 63. h6 {[%clk 0:00:07.1]} 63... g4 {[%clk 0:00:09.8]} 64.
fxg4 {[%clk 0:00:07.3]} 64... Kg5 {[%clk 0:00:10.1]} 65. h7 {[%clk 0:00:07.5]}
65... Kxg4 {[%clk 0:00:10.4]} 66. h8=Q {[%clk 0:00:07.3]} 66... f3 {[%clk
0:00:11.3]} 67. Qh3+ {[%clk 0:00:07.1]} 67... Kg5 {[%clk 0:00:10.4]} 68. Qxf3
{[%clk 0:00:06.4]} 68... Kg6 {[%clk 0:00:10.5]} 69. Ra6+ {[%clk 0:00:05.4]}
69... Kg7 {[%clk 0:00:10.5]} 70. Qf6+ {[%clk 0:00:05.5]} 70... Kh7 {[%clk
0:00:11]} 71. Qg6+ {[%clk 0:00:05.4]} 71... Kh8 {[%clk 0:00:11.2]} 72. Ra8#
{[%clk 0:00:05.9]} 1-0

[Event "Late-Titled-Tuesday-Blitz-January-30-2024"]
[Site "Chess.com"]
[Date "2024.01.30"]
[Round "11"]
[White "bazar-wokzal"]
[Black "vesalhamedinia"]
[Result "1-0"]
[WhiteElo "2592"]
[BlackElo "2488"]
[TimeControl "180+1"]
[EndTime "16:07:11 PST"]
[Termination "bazar-wokzal won by checkmate"]

1. e4 {[%clk 0:03:00.9]} 1... c5 {[%clk 0:02:59.8]} 2. c3 {[%clk 0:02:58.2]}
2... d5 {[%clk 0:02:59.9]} 3. exd5 {[%clk 0:02:57.4]} 3... Qxd5 {[%clk
0:03:00.8]} 4. d4 {[%clk 0:02:57.4]} 4... Nf6 {[%clk 0:03:00.8]} 5. Nf3 {[%clk
0:02:57.8]} 5... e6 {[%clk 0:03:01.3]} 6. a3 {[%clk 0:02:57.6]} 6... Nc6 {[%clk
0:03:00.2]} 7. Be3 {[%clk 0:02:57]} 7... cxd4 {[%clk 0:02:58.8]} 8. cxd4 {[%clk
0:02:57.9]} 8... Be7 {[%clk 0:02:59.2]} 9. Nc3 {[%clk 0:02:58.1]} 9... Qd6
{[%clk 0:03:00]} 10. Qc2 {[%clk 0:02:58.8]} 10... O-O {[%clk 0:02:59.6]} 11. Bd3
{[%clk 0:02:59.5]} 11... a6 {[%clk 0:02:58.6]} 12. Rc1 {[%clk 0:02:58.8]} 12...
Bd7 {[%clk 0:02:58.5]} 13. O-O {[%clk 0:02:55.4]} 13... Rfd8 {[%clk 0:02:58.6]}
14. Qd2 {[%clk 0:02:55.3]} 14... Be8 {[%clk 0:02:47.9]} 15. Rcd1 {[%clk
0:02:47.8]} 15... Rac8 {[%clk 0:02:46.8]} 16. Bb1 {[%clk 0:02:44]} 16... Na5
{[%clk 0:02:40]} 17. Ba2 {[%clk 0:02:41.5]} 17... Nc4 {[%clk 0:02:37.8]} 18. Qe2
{[%clk 0:02:40.8]} 18... b5 {[%clk 0:02:34.3]} 19. Rfe1 {[%clk 0:02:34.9]} 19...
Nxa3 {[%clk 0:02:33.8]} 20. Ne5 {[%clk 0:02:31.7]} 20... b4 {[%clk 0:02:15.5]}
21. Nb1 {[%clk 0:02:10.2]} 21... Nc2 {[%clk 0:02:05.6]} 22. Rf1 {[%clk
0:02:05.2]} 22... Nxe3 {[%clk 0:02:03.9]} 23. fxe3 {[%clk 0:02:03.9]} 23... Bb5
{[%clk 0:01:57.6]} 24. Bc4 {[%clk 0:01:53.9]} 24... Bxc4 {[%clk 0:01:38.9]} 25.
Nxc4 {[%clk 0:01:53.4]} 25... Qc6 {[%clk 0:01:30.9]} 26. Nbd2 {[%clk 0:01:53]}
26... Qb5 {[%clk 0:01:27.2]} 27. b3 {[%clk 0:01:50.1]} 27... h6 {[%clk
0:01:11.1]} 28. Ra1 {[%clk 0:01:49.2]} 28... Qb7 {[%clk 0:01:08]} 29. Ra4 {[%clk
0:01:33.3]} 29... Nd5 {[%clk 0:01:06.8]} 30. Qf3 {[%clk 0:01:33]} 30... Bg5
{[%clk 0:01:06.2]} 31. Rfa1 {[%clk 0:01:27.6]} 31... Ra8 {[%clk 0:00:38.4]} 32.
Ne4 {[%clk 0:01:25.9]} 32... Be7 {[%clk 0:00:25.3]} 33. Ra5 {[%clk 0:01:18.4]}
33... Qc7 {[%clk 0:00:15.9]} 34. Rxa6 {[%clk 0:01:11.7]} 34... Rxa6 {[%clk
0:00:16.8]} 35. Rxa6 {[%clk 0:01:11.5]} 35... Nc3 {[%clk 0:00:11.6]} 36. Ne5
{[%clk 0:00:56]} 36... Nxe4 {[%clk 0:00:08.8]} 37. Rc6 {[%clk 0:00:39.6]} 37...
Ng5 {[%clk 0:00:06.3]} 38. Rxc7 {[%clk 0:00:37.8]} 38... Nxf3+ {[%clk
0:00:06.2]} 39. Nxf3 {[%clk 0:00:37.7]} 39... Bd6 {[%clk 0:00:06.1]} 40. Rc6
{[%clk 0:00:36.3]} 40... Kf8 {[%clk 0:00:06.3]} 41. Kf2 {[%clk 0:00:36.4]} 41...
Ke7 {[%clk 0:00:06.7]} 42. Ke2 {[%clk 0:00:35.4]} 42... Ra8 {[%clk 0:00:07]} 43.
e4 {[%clk 0:00:30.6]} 43... Ra2+ {[%clk 0:00:05.3]} 44. Kd3 {[%clk 0:00:30.8]}
44... Rxg2 {[%clk 0:00:05.5]} 45. e5 {[%clk 0:00:31.1]} 45... Bb8 {[%clk
0:00:05.8]} 46. Rb6 {[%clk 0:00:30.6]} 46... Bc7 {[%clk 0:00:06.4]} 47. Rxb4
{[%clk 0:00:28.1]} 47... Rf2 {[%clk 0:00:05.4]} 48. Ke3 {[%clk 0:00:25.5]} 48...
Rb2 {[%clk 0:00:04.8]} 49. Nd2 {[%clk 0:00:22.1]} 49... Kd7 {[%clk 0:00:04.9]}
50. Rb7 {[%clk 0:00:14.9]} 50... Kc6 {[%clk 0:00:05]} 51. Ra7 {[%clk 0:00:14.4]}
51... Kb6 {[%clk 0:00:04.9]} 52. Ra8 {[%clk 0:00:14.3]} 52... Kc6 {[%clk
0:00:03.2]} 53. Rf8 {[%clk 0:00:12.7]} 53... Ba5 {[%clk 0:00:03.6]} 54. Nc4
{[%clk 0:00:12.4]} 54... Rxb3+ {[%clk 0:00:04.2]} 55. Ke4 {[%clk 0:00:12.9]}
55... Bc7 {[%clk 0:00:04]} 56. Rxf7 {[%clk 0:00:12.5]} 56... Rc3 {[%clk
0:00:04]} 57. Ne3 {[%clk 0:00:10.1]} 57... Rc1 {[%clk 0:00:02.3]} 58. Rxg7
{[%clk 0:00:09.4]} 58... Rh1 {[%clk 0:00:03.2]} 59. Rg6 {[%clk 0:00:09.1]} 59...
Rxh2 {[%clk 0:00:03.2]} 60. Rxe6+ {[%clk 0:00:09.2]} 60... Kd7 {[%clk
0:00:04.1]} 61. Rg6 {[%clk 0:00:07.3]} 61... Bb6 {[%clk 0:00:04.6]} 62. Nf5
{[%clk 0:00:06.9]} 62... Bc7 {[%clk 0:00:03]} 63. e6+ {[%clk 0:00:07.1]} 63...
Ke8 {[%clk 0:00:03.2]} 64. Rg8# {[%clk 0:00:06.8]} 1-0